bitfinex-derivatives/quotes_ETHF0:USTF0_20250130
["timestamp","ask_amount","ask_price","bid_price","bid_amount"]
[1738231682426,0.62204,3215.7,3215.6,0.5267]
[1738231683033,0.62204,3215.7,3215.6,1.14875]
[1738231684337,0.62204,3215.7,3215.6,0.5267]
[1738231685239,0.62209,3215.4,3215.3,3.8299]
[1738231685940,0.62209,3215.4,3215.3,3.2078]
[1738231686148,0.52,3215.6,3215.3,3.2078]
[1738231686332,0.62209,3215.4,3215.3,3.2078]
[1738231688843,0.62208,3215.5,3215.4,0.62207]
[1738231689041,0.5414,3215.8,3215.4,2.69308359]
[1738231689342,0.62203,3215.8,3215.7,0.62201]
[1738231690240,3.212462,3216.0,3215.4,1.0314]
[1738231690444,0.62207,3215.5,3215.4,1.11959]
[1738231690643,1.555,3215.9,3215.5,0.62205]
[1738231690644,0.62207,3215.6,3215.5,0.62205]
[1738231690938,0.62202,3215.9,3215.8,0.62201]
[1738231691147,3.834452,3216.0,3215.9,0.622]
[1738231691345,0.626652,3216.0,3215.9,0.622]
[1738231691643,0.62204,3215.8,3215.7,0.62202]
[1738231692032,0.004662,3216.0,3215.4,0.4975]
[1738231692237,0.62207,3215.6,3215.5,0.62207]
[1738231692434,0.62207,3215.6,3215.5,0.62205]
[1738231692750,0.62207,3215.5,3215.4,0.4975]
[1738231693045,0.62207,3215.5,3215.3,3.8299]
[1738231693046,0.62209,3215.4,3215.3,3.82991]
[1738231693237,0.62209,3215.4,3215.3,3.2078]
[1738231693841,0.62209,3215.4,3215.3,3.82991]
[1738231694144,0.62209,3215.4,3215.3,3.2078]
[1738231694345,0.62209,3215.4,3215.3,3.82991]
[1738231696248,0.62209,3215.4,3215.3,3.2078]
[1738231696446,0.62209,3215.4,3215.3,3.82991]
[1738231696648,0.61983043,3215.4,3215.3,3.2078]
[1738231696845,0.61983043,3215.4,3215.3,3.82991]
[1738231697240,0.61983043,3215.4,3215.3,3.2078]
[1738231697448,0.61983043,3215.4,3215.3,3.82991]
[1738231698838,0.5176,3215.5,3215.3,3.2078]
[1738231699041,0.5176,3215.5,3215.4,0.62209]
[1738231699042,1.13969,3215.5,3215.4,0.62209]
[1738231699340,0.62209,3215.5,3215.4,0.62209]
[1738231699540,1.12716,3215.6,3215.5,0.62207]
[1738231701141,0.62201,3215.9,3215.8,0.622]
[1738231701949,0.004662,3216.0,3215.9,0.622]
[1738231703046,1.66131,3216.9,3216.5,0.62188]
[1738231703249,1.66131,3216.9,3216.8,0.62182]
[1738231703448,1.0395,3216.9,3216.6,1.0434]
[1738231703649,0.62184,3216.7,3216.6,1.66525]
[1738231704455,0.62184,3216.8,3216.7,0.62183]
[1738231704846,1.0395,3216.9,3216.6,1.0434]
[1738231705158,0.62184,3216.7,3216.6,1.66524]
[1738231707155,1.14051,3216.9,3216.8,0.62182]
[1738231708555,0.004662,3217.0,3216.9,0.6218]
[1738231708752,0.626462,3217.0,3216.9,0.6218]
[1738231711750,0.626442,3217.0,3216.9,0.6218]
[1738231712056,0.004662,3217.0,3216.9,0.6218]
[1738231712753,0.626442,3217.0,3216.9,0.6218]
[1738231713160,0.004662,3217.0,3216.9,0.6218]
[1738231715860,0.626442,3217.0,3216.9,0.6218]
[1738231717259,0.62184,3216.8,3216.7,0.62183]
[1738231719055,0.62184,3216.7,3216.6,1.66524]
[1738231719656,0.62184,3216.7,3216.6,1.13094]
[1738231720259,0.62184,3216.7,3216.6,0.62184]
[1738231721161,1.13563,3216.8,3216.7,0.62184]
[1738231721357,0.6219,3216.4,3216.3,0.004662]
[1738231721558,3.8297,3216.4,3216.3,0.004662]
[1738231722160,4.371,3216.4,3216.3,0.00358655]
[1738231722360,1.55493,3216.1,3215.2,0.5091]
[1738231722560,0.62213,3215.2,3215.1,3.2078]
[1738231722769,2.69308359,3215.8,3215.1,3.2078]
[1738231722770,4.24817359,3215.8,3215.1,3.2078]
[1738231722958,0.62212,3215.3,3215.1,3.82994]
[1738231724462,0.62212,3215.3,3215.1,3.2078]
[1738231724867,0.62212,3215.3,3215.1,3.82994]
[1738231725074,0.62212,3215.3,3215.1,3.2078]
[1738231725663,0.5133,3215.6,3215.1,3.2078]
[1738231725874,0.62213,3215.2,3215.1,3.2078]
[1738231726563,2.06849,3215.6,3214.9,0.62219]
[1738231726763,0.62216,3215.1,3214.9,0.62219]
[1738231726965,0.62217,3215.0,3214.9,0.62219]
[1738231727363,0.62216,3215.1,3214.9,0.62219]
[1738231727963,0.5143,3215.4,3214.9,0.62219]
[1738231728264,0.62218,3215.0,3214.8,1.13131]
[1738231728465,0.62221,3214.9,3214.7,3.2078]
[1738231728769,0.62221,3214.8,3214.7,3.2078]
[1738231729360,0.5143,3215.4,3214.7,3.2078]
[1738231729560,0.6222,3214.9,3214.7,3.2078]
[1738231730365,0.62221,3214.8,3214.7,3.2078]
[1738231734975,0.62229,3214.4,3214.3,3.2078]
[1738231738576,0.62229,3214.4,3214.3,3.83011]
[1738231738776,1.5078,3214.7,3214.3,3.83011]
[1738231739173,0.62229,3214.4,3214.3,3.83011]
[1738231740281,2.13004,3214.7,3214.6,0.62225]
[1738231740579,1.5078,3214.7,3214.6,0.62225]
[1738231741276,5.90088359,3215.5,3214.6,1.5556]
[1738231741474,5.90088359,3215.5,3215.1,0.62214]
[1738231741475,0.62215,3215.2,3215.1,0.62214]
[1738231742480,0.5411,3215.4,3214.7,4.2414]
[1738231742772,0.004662,3215.6,3215.5,0.62207]
[1738231743081,0.626712,3215.6,3215.5,0.62207]
[1738231743472,0.004662,3215.6,3215.5,0.62207]
[1738231743979,0.626712,3215.6,3215.5,0.62207]
[1738231744680,0.62209,3215.5,3215.4,0.62207]
[1738231745078,0.004662,3215.6,3215.5,0.62207]
[1738231745079,0.626722,3215.6,3215.5,0.62207]
[1738231745674,0.004662,3215.6,3215.3,0.5352]
[1738231745976,0.626722,3215.6,3215.5,0.62207]
[1738231746572,0.004662,3215.6,3215.5,0.62207]
[1738231747583,0.004662,3215.6,3215.3,0.5352]
[1738231747783,0.62209,3215.5,3215.4,0.62208]
[1738231749979,0.62209,3215.4,3215.3,1.15731]
[1738231750776,0.62209,3215.4,3215.3,0.62211]
[1738231750983,0.62213,3215.3,3215.2,0.62212]
[1738231751378,1.5553,3215.5,3215.1,3.2078]
[1738231751574,0.62213,3215.2,3215.1,3.82993]
[1738231754686,0.62213,3215.3,3215.2,0.62212]
[1738231754884,0.62213,3215.2,3215.1,3.82994]
[1738231755687,0.62212,3215.3,3215.2,0.62211]
[1738231755892,0.626722,3215.6,3215.5,0.62207]
[1738231756584,0.626722,3215.6,3215.1,3.2078]
[1738231756585,0.62213,3215.2,3215.1,3.82994]
[1738231756788,1.0513,3215.5,3215.1,3.2078]
[1738231756985,0.62212,3215.3,3215.2,0.62211]
[1738231757685,0.62217,3215.1,3215.0,0.62215]
[1738231757884,0.62214,3215.2,3215.1,0.62213]
[1738231759789,0.541,3215.4,3214.7,4.24866359]
[1738231759994,0.62215,3215.2,3215.1,0.62213]
[1738231760492,0.62212,3215.3,3215.2,0.62211]
[1738231761694,0.62208,3215.5,3215.4,0.62209]
[1738231766699,0.004662,3215.6,3215.5,0.62207]
[1738231767600,0.004662,3215.6,3215.5,3.82987]
[1738231768698,0.626712,3215.6,3215.5,3.82987]
[1738231768899,0.626712,3215.6,3215.5,3.2078]
[1738231770200,0.626712,3215.6,3215.5,3.82987]
[1738231771397,0.004662,3215.6,3215.5,3.82987]
[1738231771905,0.626712,3215.6,3215.5,3.82987]
[1738231773307,0.004662,3215.6,3215.5,3.82987]
[1738231773898,0.626712,3215.6,3215.5,3.82987]
[1738231774701,0.004662,3215.6,3215.5,3.82987]
[1738231775202,0.5119,3216.4,3215.5,3.2078]
[1738231775512,1.1338,3216.4,3216.3,3.82972]
[1738231775707,1.1338,3216.4,3216.3,3.2078]
[1738231775902,1.1338,3216.4,3216.3,3.82972]
[1738231776299,1.0142,3216.6,3216.5,0.62188]
[1738231776602,0.004662,3216.7,3216.6,0.62186]
[1738231776802,0.626502,3216.7,3216.6,0.62186]
[1738231777003,0.004662,3216.7,3216.6,0.62186]
[1738231778905,0.626502,3216.7,3216.6,0.62186]
[1738231779112,0.626502,3216.7,3216.3,3.2078]
[1738231779113,0.004662,3216.7,3216.3,3.2078]
[1738231779503,0.62189,3216.5,3216.4,0.62189]
[1738231779698,0.004662,3216.7,3216.5,0.62187]
[1738231779699,0.62187,3216.6,3216.5,0.62187]
[1738231781002,2.56866,3217.1,3216.5,0.62187]
[1738231781003,3.2078,3218.1,3216.6,1.55463]
[1738231781308,0.4916,3217.7,3217.6,0.62167]
[1738231781504,0.5184,3218.4,3217.5,5.90088359]
[1738231781812,3.82929,3218.6,3218.3,0.62153]
[1738231782025,0.62151,3218.4,3218.3,3.2078]
[1738231782226,1.551862,3218.8,3218.3,3.2078]
[1738231782421,5.90088359,3218.6,3218.1,0.004662]
[1738231782735,0.62155,3218.2,3218.1,0.004662]
[1738231783529,2.16875,3218.2,3218.1,0.004662]
[1738231784631,2.16875,3218.2,3217.4,3.2078]
[1738231784632,0.62168,3217.6,3217.4,3.2078]
[1738231784829,1.0386,3217.5,3217.4,3.2078]
[1738231785024,4.86029,3217.5,3217.4,3.2078]
[1738231785931,0.62176,3217.2,3217.1,0.004662]
[1738231788129,0.62175,3217.2,3217.1,0.004662]
[1738231790836,6.40848359,3217.4,3216.2,3.2078]
[1738231790837,0.62188,3216.5,3216.4,0.62189]
[1738231791224,4.24753359,3217.1,3216.2,3.2078]
[1738231791429,1.66802,3216.4,3216.2,3.2078]
[1738231791832,1.66802,3216.4,3215.8,1.5349]
[1738231791833,0.62196,3216.1,3215.9,0.622]
[1738231792031,1.0461,3216.4,3215.8,3.7321]
[1738231792238,0.62195,3216.2,3216.0,0.62197]
[1738231792436,3.82195,3216.2,3216.0,0.62197]
[1738231793239,3.2,3216.2,3216.1,0.62196]
[1738231794728,0.62194,3216.2,3216.1,0.62196]
[1738231795037,0.62198,3216.0,3215.9,0.622]
[1738231795240,0.62198,3216.0,3215.8,3.8298]
[1738231795834,0.62198,3216.0,3215.4,3.22978359]
[1738231795835,0.62207,3215.5,3215.4,3.2078]
[1738231796041,2.69308359,3215.6,3214.9,3.2078]
[1738231796242,1.13051,3215.4,3215.1,0.62214]
[1738231796446,1.13051,3215.4,3215.2,0.62213]
[1738231798738,0.62207,3215.6,3215.4,0.62208]
[1738231799043,3.20928359,3215.9,3214.5,1.32162983]
[1738231799044,0.5162,3215.9,3215.8,0.62202]
[1738231799244,1.1382,3215.9,3215.8,0.62202]
[1738231799637,0.62203,3215.8,3215.6,0.62204]
[1738231800038,0.62204,3215.7,3215.6,0.62204]
[1738231800239,0.62207,3215.5,3215.4,1.63789]
[1738231800447,0.62207,3215.5,3215.4,1.12619]
[1738231800637,0.4962,3215.6,3215.4,0.5041]
[1738231800839,0.4962,3215.6,3215.5,0.62207]
[1738231801039,1.13573,3215.8,3215.4,0.5041]
[1738231801541,0.62204,3215.7,3215.6,0.62204]
[1738231802045,0.4962,3216.1,3215.4,0.5041]
[1738231802242,0.62198,3216.0,3215.9,0.62199]
[1738231802449,1.11816,3216.1,3216.0,0.62198]
[1738231802649,1.11816,3216.1,3215.9,0.62198]
[1738231803643,1.11816,3216.1,3216.0,0.62198]
[1738231803844,0.62199,3216.0,3215.9,0.62199]
[1738231804247,1.11817,3216.1,3216.0,0.62198]
[1738231805643,1.11816,3216.1,3216.0,0.62198]
[1738231805845,0.62196,3216.1,3216.0,0.62198]
[1738231806144,0.62194,3216.2,3216.1,0.62193]
[1738231808847,1.0339,3216.4,3215.7,3.7153]
[1738231809548,0.62195,3216.2,3216.1,0.62195]
[1738231810451,0.62197,3216.1,3216.0,0.62197]
[1738231810648,1.0339,3216.4,3216.0,0.62197]
[1738231810849,0.004662,3216.6,3216.5,0.62188]
[1738231814140,0.626522,3216.6,3216.5,0.62188]
[1738231814341,0.626522,3216.6,3216.4,0.5435]
[1738231814342,0.62188,3216.5,3216.4,0.5435]
[1738231814546,0.62188,3216.5,3216.4,1.1654]
[1738231814752,0.626532,3216.6,3216.5,0.62188]
[1738231815451,0.004662,3216.6,3216.5,0.62188]
[1738231816753,0.004662,3216.6,3216.5,3.31496359]
[1738231816954,3.2078,3217.3,3217.2,0.62175]
[1738231817252,3.2,3217.6,3217.2,3.2078]
[1738231817455,0.62166,3217.7,3217.4,0.62171]
[1738231817757,0.62166,3217.7,3217.6,0.62167]
[1738231818151,6.4078,3217.9,3217.3,1.070162]
[1738231818355,1.55408,3217.8,3217.3,1.070162]
[1738231818657,0.62171,3217.4,3217.3,0.004662]
[1738231818960,3.31479359,3217.4,3217.3,0.004662]
[1738231819255,3.31479359,3217.4,3217.3,0.00339117]
[1738231819959,6.51479359,3217.4,3217.3,0.00339117]
[1738231821957,6.51479359,3217.4,3216.2,7.70241676]
[1738231821958,0.62192,3216.3,3216.2,3.82973]
[1738231822459,0.62192,3216.3,3216.2,3.2078]
[1738231822950,0.62192,3216.3,3216.2,3.82974]
[1738231823155,0.62192,3216.3,3216.2,3.2078]
[1738231825360,1.12182,3216.3,3216.2,3.2078]
[1738231827166,0.4999,3216.3,3216.1,0.62196]
[1738231827461,0.62194,3216.2,3216.1,0.62196]
[1738231828354,0.4999,3216.3,3215.8,3.2078]
[1738231828554,0.622,3215.9,3215.8,3.2078]
[1738231831557,3.822,3215.9,3215.8,3.2078]
[1738231831962,3.822,3215.9,3215.0,2.69308359]
[1738231831963,0.62215,3215.1,3215.0,0.62217]
[1738231832165,1.5551,3215.7,3214.9,3.2078]
[1738231832463,0.5115,3215.6,3214.9,3.2078]
[1738231832669,0.62217,3215.1,3214.9,3.82998]
[1738231833066,1.55519,3215.5,3214.9,3.82998]
[1738231833267,1.55519,3215.5,3215.0,0.62217]
[1738231833268,0.62216,3215.1,3215.0,0.62217]
[1738231833970,1.55519,3215.5,3214.9,3.2078]
[1738231834172,0.62216,3215.1,3214.9,3.82998]
[1738231834667,0.62217,3215.0,3214.9,3.82998]
[1738231834963,0.62217,3215.0,3214.9,3.2078]
[1738231835364,0.62217,3215.0,3214.9,3.82999]
[1738231835558,0.62216,3215.1,3215.0,0.62217]
[1738231836669,0.62216,3215.1,3214.9,3.82998]
[1738231836870,0.62216,3215.1,3215.0,0.62217]
[1738231838164,3.2078,3215.4,3214.9,3.2078]
[1738231838369,0.62213,3215.3,3215.2,0.62212]
[1738231838566,3.82991,3215.4,3215.3,0.62211]
[1738231840766,1.13357,3215.6,3215.3,3.2078]
[1738231840972,0.62205,3215.7,3215.6,0.62204]
[1738231841172,1.0432,3215.8,3215.7,0.62204]
[1738231841173,1.13462,3215.8,3215.7,0.62204]
[1738231841374,0.62202,3215.8,3215.7,0.62204]
[1738231841672,1.0366,3216.1,3215.7,3.2078]
[1738231842062,0.62199,3216.0,3215.9,0.62198]
[1738231844374,0.62195,3216.2,3216.1,0.62195]
[1738231844667,0.004662,3216.4,3215.8,2.05632]
[1738231844872,0.62195,3216.2,3216.1,3.82975]
[1738231845371,0.62195,3216.2,3216.1,3.2078]
[1738231850978,0.62195,3216.2,3216.1,3.82976]
[1738231853174,0.62195,3216.2,3216.1,0.62196]
[1738231853669,0.5368,3216.3,3215.9,3.2078]
[1738231853875,0.5368,3216.3,3215.9,3.82978]
[1738231853876,0.62198,3216.0,3215.9,3.82978]
[1738231854477,0.62196,3216.1,3216.0,0.62195]
[1738231854678,0.62196,3216.1,3216.0,1.12065]
[1738231854879,0.62196,3216.1,3216.0,1.64355]
[1738231855474,0.62195,3216.2,3216.1,0.62194]
[1738231858888,0.004662,3216.4,3216.0,0.5229]
[1738231859179,0.62198,3216.0,3215.9,3.2078]
[1738231859573,1.68388,3216.0,3215.9,3.2078]
[1738231861487,0.62205,3215.7,3215.6,0.62204]
[1738231862180,1.555,3215.9,3215.5,4.33006]
[1738231862181,0.62205,3215.6,3215.5,4.33006]
[1738231862484,0.62205,3215.6,3215.5,3.2078]
[1738231866983,0.62207,3215.5,3215.4,0.62209]
[1738231867186,0.62207,3215.5,3215.4,3.82989]
[1738231867782,0.62207,3215.5,3215.4,3.2078]
[1738231870089,0.62207,3215.5,3215.4,3.82989]
[1738231871083,0.62207,3215.5,3215.4,3.2078]
[1738231871391,0.62207,3215.5,3215.4,3.82989]
[1738231872794,1.0619,3216.0,3215.4,3.82989]
[1738231872997,0.62202,3215.9,3215.8,0.62199]
[1738231873991,0.62197,3216.1,3216.0,0.62196]
[1738231876302,0.004662,3216.4,3216.1,0.62193]
[1738231876303,0.62195,3216.2,3216.1,0.62193]
[1738231880998,0.622,3216.0,3215.9,0.62196]
[1738231881594,0.622,3215.9,3215.8,3.2078]
[1738231881794,1.1284,3215.9,3215.8,3.2078]
[1738231882000,0.62205,3215.6,3215.5,2.13856]
[1738231882202,0.62205,3215.6,3215.5,1.63936]
[1738231882595,0.62205,3215.7,3215.6,0.62204]
[1738231883399,0.4911,3215.8,3215.5,1.0173]
[1738231883400,0.62205,3215.6,3215.5,1.0173]
[1738231884405,0.62205,3215.6,3215.5,1.63937]
[1738231886299,0.62205,3215.7,3215.5,1.0173]
[1738231886505,0.62205,3215.7,3215.6,0.62205]
[1738231886909,0.62205,3215.6,3215.5,1.63936]
[1738231887600,0.62205,3215.6,3215.5,1.0173]
[1738231887814,0.4911,3215.8,3215.4,0.62209]
[1738231888011,0.62207,3215.5,3215.4,0.62209]
[1738231888999,0.62209,3215.4,3215.3,3.8299]
[1738231890504,0.62209,3215.4,3215.3,3.82991]
[1738231892015,0.62218,3215.1,3214.8,3.2078]
[1738231892307,0.62218,3215.1,3215.0,0.62216]
[1738231894408,0.62217,3215.0,3214.9,1.12777]
[1738231898112,0.532,3215.2,3214.8,3.2078]
[1738231898113,0.62219,3214.9,3214.8,3.2078]
[1738231899913,0.62219,3214.9,3214.8,3.83001]
[1738231901510,0.62219,3214.9,3214.8,3.2078]
[1738231901713,0.62219,3214.9,3214.8,3.83001]
[1738231901915,0.62219,3214.9,3214.8,3.2078]
[1738231902508,0.62219,3214.9,3214.8,3.83001]
[1738231903506,0.532,3215.2,3214.8,3.2078]
[1738231903707,0.62217,3215.1,3215.0,0.62216]
[1738231907213,1.14323,3215.3,3215.1,0.62215]
[1738231907413,0.62211,3215.4,3215.3,0.6221]
[1738231908005,0.62215,3215.2,3215.1,0.62214]
[1738231908509,0.62211,3215.4,3215.3,0.6221]
[1738231911318,0.62204,3215.7,3215.6,0.62204]
[1738231913017,0.62202,3215.9,3215.7,0.62204]
[1738231913318,0.5307,3216.0,3215.5,0.5327]
[1738231913519,0.5307,3216.0,3215.7,0.62202]
[1738231913520,0.62204,3215.8,3215.7,0.62202]
[1738231914024,0.62207,3215.6,3215.5,0.62206]
[1738231914615,1.13997,3215.6,3215.5,0.62206]
[1738231915219,0.5179,3215.6,3215.4,3.7495]
[1738231915419,0.62213,3215.3,3215.2,0.62212]
[1738231915721,0.62213,3215.3,3215.0,3.2078]
[1738231915722,0.62215,3215.1,3215.0,3.2078]
[1738231916115,3.82215,3215.1,3215.0,3.2078]
[1738231916316,4.35335,3215.1,3215.0,3.2078]
[1738231916517,0.62217,3215.0,3214.9,0.62217]
[1738231917520,0.5312,3215.1,3214.6,4.76341]
[1738231917715,1.15337,3215.1,3215.0,0.62217]
[1738231918217,0.62221,3214.9,3214.8,0.6222]
[1738231918427,0.62223,3214.8,3214.7,0.62222]
[1738231918922,0.62223,3214.7,3214.6,3.2078]
[1738231919822,0.62223,3214.7,3214.6,3.83005]
[1738231920115,0.62223,3214.7,3214.6,3.2078]
[1738231920621,0.62223,3214.7,3214.6,3.83005]
[1738231921119,0.62223,3214.7,3214.6,3.2078]
[1738231921324,0.62223,3214.7,3214.6,3.83005]
[1738231921920,0.6222,3214.9,3214.8,0.62219]
[1738231923130,0.5192,3215.0,3214.6,3.2078]
[1738231923420,0.5192,3215.0,3214.9,0.62219]
[1738231923421,0.62219,3215.0,3214.9,0.62219]
[1738231923629,1.15336,3215.1,3215.0,0.62217]
[1738231924319,0.5338,3215.2,3214.8,0.5186]
[1738231924520,1.038,3215.2,3214.8,0.5186]
[1738231924721,0.62217,3215.1,3215.0,0.62216]
[1738231925226,0.62213,3215.3,3215.2,0.62212]
[1738231925520,0.62214,3215.2,3215.1,0.62214]
[1738231926025,1.5599,3215.6,3215.0,3.2078]
[1738231926221,0.62215,3215.1,3215.0,3.82996]
[1738231927228,0.62215,3215.2,3215.1,0.62214]
[1738231927532,1.5599,3215.6,3215.0,3.2078]
[1738231927533,0.62215,3215.1,3215.0,3.2078]
[1738231927730,1.55524,3215.4,3214.8,0.5186]
[1738231927931,2.14239,3215.0,3214.9,0.62218]
[1738231928630,2.14239,3215.0,3214.6,3.2078]
[1738231928631,1.5202,3215.0,3214.6,3.2078]
[1738231928833,0.62223,3214.7,3214.6,3.83004]
[1738231929223,3.82223,3214.7,3214.6,3.83004]
[1738231929625,0.62223,3214.7,3214.6,3.83004]
[1738231929930,0.62223,3214.7,3214.6,3.2078]
[1738231932627,3.07565,3215.0,3214.9,0.62219]
[1738231932628,1.5202,3215.0,3214.9,0.62219]
[1738231932834,2.69308359,3216.0,3215.0,0.62216]
[1738231932835,0.62214,3215.2,3215.0,0.62216]
[1738231933032,3.2078,3215.8,3215.0,3.2078]
[1738231933332,0.62205,3215.6,3215.5,0.62206]
[1738231933929,0.62205,3215.7,3215.6,0.62205]
[1738231934126,0.62207,3215.6,3215.5,0.62207]
[1738231934433,3.2078,3215.8,3215.1,0.5016]
[1738231934635,0.62209,3215.5,3215.4,0.62208]
[1738231935334,1.5551,3215.7,3215.1,0.5016]
[1738231935530,0.62208,3215.5,3215.3,0.62211]
[1738231935738,0.62207,3215.6,3215.5,0.62207]
[1738231937827,0.5434,3215.7,3215.1,0.5016]
[1738231938034,0.62208,3215.5,3215.4,0.62208]
[1738231938436,3.82208,3215.5,3215.4,0.62208]
[1738231938936,3.2,3215.5,3215.1,0.5016]
[1738231939137,0.6221,3215.4,3215.3,0.62209]
[1738231940636,0.62212,3215.3,3215.2,0.62212]
[1738231940838,1.16482,3215.3,3215.2,0.62212]
[1738231941032,1.16482,3215.3,3215.0,3.2078]
[1738231941033,0.62215,3215.1,3215.0,3.2078]
[1738231941229,0.62215,3215.1,3214.8,0.5324]
[1738231941433,0.62215,3215.1,3214.9,0.62218]
[1738231941739,0.62217,3215.0,3214.9,0.62218]
[1738231942433,0.62217,3215.1,3214.9,0.62218]
[1738231943235,1.0447,3215.2,3214.9,0.62218]
[1738231943436,1.0447,3215.2,3214.6,3.2078]
[1738231943632,0.62223,3214.7,3214.6,3.2078]
[1738231945228,0.62223,3214.7,3214.6,3.83005]
[1738231945536,0.62223,3214.7,3214.6,3.2078]
[1738231947239,0.62223,3214.7,3214.6,3.83005]
[1738231950346,0.62221,3214.9,3214.8,0.62218]
[1738231950645,0.62218,3215.1,3215.0,0.62215]
[1738231950943,3.8299,3215.4,3215.3,0.62211]
[1738231951148,3.2078,3215.4,3215.3,0.62211]
[1738231952250,1.69426,3216.1,3216.0,0.62198]
[1738231952547,0.54,3216.5,3215.9,2.69308359]
[1738231952748,0.626572,3216.4,3216.3,0.62192]
[1738231953144,3.204662,3216.4,3216.3,0.62192]
[1738231953542,3.826562,3216.4,3216.3,0.62192]
[1738231955547,3.204662,3216.4,3216.3,0.62192]
[1738231956353,3.826562,3216.4,3216.3,0.62192]
[1738231956750,3.204662,3216.4,3216.3,0.62192]
[1738231958850,0.004662,3216.4,3216.3,0.62192]
[1738231959050,0.626562,3216.4,3216.3,0.62192]
[1738231959246,0.004662,3216.4,3216.2,3.2078]
[1738231959452,3.82192,3216.3,3216.2,3.82973]
[1738231959642,3.2,3216.3,3216.2,3.82973]
[1738231959951,3.82192,3216.3,3216.2,3.82973]
[1738231960354,3.2,3216.3,3216.2,3.82973]
[1738231960959,0.004662,3216.4,3216.3,0.62192]
[1738231961646,0.004662,3216.4,3216.3,1.12162]
[1738231962958,3.2078,3217.1,3217.0,0.62178]
[1738231963250,0.9817,3217.5,3216.9,1.55451]
[1738231963448,3.2,3217.4,3217.3,0.62173]
[1738231963757,3.82171,3217.4,3217.3,0.62173]
[1738231963952,0.4905,3217.5,3217.2,3.2078]
[1738231964153,1.11219,3217.5,3217.2,3.2078]
[1738231964353,0.4905,3217.5,3217.4,0.62171]
[1738231964957,3.6905,3217.5,3217.4,0.62171]
[1738231965161,0.62173,3217.3,3217.2,3.2078]
[1738231965750,3.6905,3217.5,3217.0,0.004662]
[1738231965954,0.62176,3217.1,3217.0,0.004662]
[1738231966555,3.82176,3217.1,3217.0,0.004662]
[1738231970155,3.82176,3217.1,3217.0,0.626442]
[1738231971064,3.2,3217.1,3217.0,0.626442]
[1738231971363,0.62171,3217.4,3217.3,0.62172]
[1738231971763,3.82171,3217.4,3217.3,0.62172]
[1738231972466,0.626332,3217.7,3217.6,0.62167]
[1738231972856,3.826332,3217.7,3217.6,0.62167]
[1738231977864,3.204662,3217.7,3217.6,0.62167]
[1738231978567,3.826312,3217.7,3217.6,0.62167]
[1738231979563,3.204662,3217.7,3217.3,1.0674]
[1738231979760,0.4971,3217.6,3217.3,1.0674]
[1738231979964,1.11877,3217.6,3217.5,0.62169]
[1738231980463,4.31877,3217.6,3217.5,0.62169]
[1738231980662,3.6971,3217.6,3217.3,1.0674]
[1738231980866,0.62173,3217.3,3217.2,3.82953]
[1738231981167,0.62173,3217.3,3217.2,3.2078]
[1738231982061,3.6971,3217.6,3217.2,3.2078]
[1738231982263,0.62172,3217.4,3217.3,0.62171]
[1738231982566,3.6971,3217.6,3217.2,3.2078]
[1738231982759,0.62171,3217.4,3217.3,0.62173]
[1738231983663,0.6217,3217.5,3217.4,0.6217]
[1738231985959,0.6217,3217.5,3217.4,0.45504237]
[1738231987172,3.6971,3217.6,3217.2,3.2078]
[1738231987369,0.004662,3217.7,3217.3,0.5256]
[1738231987565,0.004662,3217.7,3217.6,0.62167]
[1738231988365,0.004662,3217.7,3217.6,3.82947]
[1738231988570,1.023,3218.4,3217.8,1.55403]
[1738231988769,0.62155,3218.3,3218.2,0.62153]
[1738231989480,1.64454,3218.4,3218.3,0.62153]
[1738231989873,0.62155,3218.3,3218.2,0.62153]
[1738231990173,1.023,3218.4,3218.1,0.5403]
[1738231990479,1.64453,3218.4,3218.3,0.62153]
[1738231991374,1.023,3218.4,3218.3,0.62153]
[1738231992281,1.64451,3218.4,3218.3,0.62153]
[1738231992976,1.64451,3218.4,3218.0,3.39698123]
[1738231993182,1.023,3218.4,3218.0,1.84303123]
[1738231993485,1.023,3218.4,3217.7,3.2078]
[1738231993670,0.62169,3217.6,3217.5,0.62167]
[1738231993871,0.62171,3217.5,3217.2,0.27841784]
[1738231994073,0.62172,3217.4,3217.3,0.62171]
[1738231994281,3.82172,3217.4,3217.3,0.62171]
[1738231994477,0.5163,3217.5,3217.1,0.78761509]
[1738231994684,0.62174,3217.3,3216.8,2.20316598]
[1738231994981,0.62174,3217.3,3217.2,0.62175]
[1738231995184,3.2078,3217.3,3216.8,0.59504128]
[1738231995482,0.62176,3217.2,3217.1,0.62175]
[1738231995886,3.82955,3217.3,3217.2,0.62175]
[1738231996382,0.62175,3217.2,3217.1,0.62175]
[1738231996686,3.2078,3217.3,3216.8,0.004662]
[1738231996878,0.6218,3216.9,3216.8,0.626472]
[1738231998579,0.6218,3216.9,3216.8,0.004662]
[1738231998785,0.5126,3217.1,3216.5,2.0687877]
[1738231998979,0.62183,3216.8,3216.5,1.3392643]
[1738231999179,0.62183,3216.8,3216.7,0.62184]
[1738231999386,0.62183,3216.8,3216.7,0.62104]
[1738231999592,0.62186,3216.7,3216.6,0.62184]
[1738231999984,0.62184,3216.8,3216.7,0.62183]
[1738232000285,0.62186,3216.7,3216.6,0.62185]
[1738232000484,0.62187,3216.6,3216.5,0.62187]
[1738232000688,0.62187,3216.6,3216.4,2.69308359]